bitfinex/quotes_BTCUSD_20250316
["timestamp","ask_amount","ask_price","bid_price","bid_amount"]
[1742139229117,0.00794512,83355.0,83351.0,0.011997]
[1742139229331,0.01880647,83356.0,83351.0,0.011997]
[1742139229658,0.01880647,83356.0,83353.0,0.251938]
[1742139229659,0.00794772,83354.0,83353.0,0.251938]
[1742139229864,0.01880647,83356.0,83354.0,0.251935]
[1742139230370,0.01870649,83356.0,83353.0,0.251939]
[1742139230872,0.01870649,83356.0,83355.0,0.239937]
[1742139231098,0.01870649,83356.0,83355.0,0.251933]
[1742139231270,0.00012413,83360.0,83359.0,0.251922]
[1742139232098,0.00012413,83360.0,83359.0,0.239926]
[1742139232498,0.00012413,83360.0,83359.0,0.251922]
[1742139232823,0.00012413,83360.0,83359.0,0.254922]
[1742139234362,0.01892964,83360.0,83359.0,0.254922]
[1742139237232,0.01892964,83360.0,83359.0,0.252922]
[1742139237439,0.01892964,83360.0,83359.0,0.251922]
[1742139237631,0.01892964,83360.0,83359.0,0.255922]
[1742139238380,0.27084864,83360.0,83359.0,0.004]
[1742139238816,0.27883735,83360.0,83359.0,0.004]
[1742139239149,0.26003184,83360.0,83359.0,0.004]
[1742139240233,0.28452178,83360.0,83359.0,0.004]
[1742139240453,0.28452178,83360.0,83359.0,0.002]
[1742139240655,0.58452178,83360.0,83359.0,0.002]
[1742139241074,0.58452178,83360.0,83342.0,0.40676742]
[1742139241075,0.239966,83346.0,83342.0,0.40676742]
[1742139241311,0.251964,83346.0,83342.0,0.40676742]
[1742139241663,0.00800184,83345.0,83342.0,0.40676742]
[1742139242034,0.011998,83341.0,83336.0,0.011999]
[1742139242250,0.02681024,83345.0,83338.0,0.011999]
[1742139242460,0.00800623,83340.0,83339.0,0.25198]
[1742139242673,0.0188084,83345.0,83344.0,0.011998]
[1742139244280,0.0188084,83345.0,83344.0,0.093598]
[1742139245368,0.0188084,83345.0,83344.0,0.235518]
[1742139246873,0.0188084,83345.0,83344.0,0.14792]
[1742139247103,0.0188084,83345.0,83344.0,0.159918]
[1742139247506,0.0188084,83345.0,83344.0,0.153918]
[1742139247726,0.0188084,83345.0,83344.0,0.148918]
[1742139248040,0.0188084,83345.0,83344.0,0.156918]
[1742139248195,0.0188084,83345.0,83344.0,0.56488508]
[1742139248412,0.00029303,83360.0,83359.0,0.251922]
[1742139248993,0.00029303,83360.0,83359.0,0.327522]
[1742139250121,0.00029303,83360.0,83359.0,0.464522]
[1742139251535,0.00029303,83360.0,83359.0,0.473522]
[1742139252030,0.00029303,83360.0,83359.0,0.004]
[1742139252158,0.00029303,83360.0,83359.0,0.009]
[1742139252377,0.00029303,83360.0,83359.0,0.015996]
[1742139252598,0.00029303,83360.0,83359.0,0.004]
[1742139252792,0.00029303,83360.0,83359.0,0.008]
[1742139252993,0.02025542,83360.0,83359.0,0.004]
[1742139253196,0.00029303,83360.0,83359.0,0.004]
[1742139253396,0.00825942,83360.0,83359.0,0.255922]
[1742139253601,0.00825942,83360.0,83359.0,0.251922]
[1742139253996,0.00825942,83360.0,83359.0,0.004]
[1742139254159,0.26017842,83360.0,83359.0,0.004]
[1742139254360,0.23790676,83360.0,83359.0,0.004]
[1742139254559,0.24734761,83360.0,83359.0,0.004]
[1742139254784,0.00944085,83360.0,83359.0,0.003]
[1742139254990,0.00944085,83360.0,83359.0,0.006]
[1742139255189,0.00944085,83360.0,83359.0,0.003]
[1742139255391,0.00944085,83360.0,83355.0,0.011996]
[1742139255598,0.00944085,83360.0,83356.0,0.239933]
[1742139256043,0.011996,83356.0,83349.0,0.25195]
[1742139256232,0.011996,83358.0,83352.0,0.011997]
[1742139256449,0.03080195,83360.0,83352.0,0.011997]
[1742139256788,0.239937,83355.0,83349.0,0.011997]
[1742139256962,0.011997,83354.0,83348.0,0.251952]
[1742139257108,0.011997,83349.0,83344.0,0.0003378]
[1742139257517,0.011996,83355.0,83344.0,0.2523018]
[1742139257763,0.239932,83357.0,83351.0,0.239949]
[1742139257963,0.251928,83357.0,83351.0,0.239949]
[1742139258197,0.01880723,83353.0,83352.0,0.011997]
[1742139258417,0.01880723,83353.0,83352.0,0.251943]
[1742139258552,0.01929105,83353.0,83352.0,0.251943]
[1742139258754,0.01880723,83353.0,83352.0,0.251943]
[1742139259357,0.01880723,83353.0,83352.0,0.253943]
[1742139259539,0.0003384,83362.0,83361.0,0.251916]
[1742139259743,0.0003384,83362.0,83358.0,0.251923]
[1742139259941,0.0003384,83362.0,83361.0,0.251916]
[1742139261310,0.0003384,83362.0,83361.0,0.252916]
[1742139261769,0.0003384,83362.0,83361.0,0.254916]
[1742139263768,0.01914189,83362.0,83361.0,0.253916]
[1742139263986,0.01914189,83362.0,83361.0,0.251916]
[1742139264193,0.01914189,83362.0,83361.0,0.254916]
[1742139264641,0.01914189,83362.0,83361.0,0.258916]
[1742139265782,0.551853,83382.0,83375.0,0.011994]
[1742139265982,0.3,83382.0,83377.0,0.011993]
[1742139266201,0.00997127,83381.0,83380.0,0.011993]
[1742139267726,0.00997127,83381.0,83378.0,0.251862]
[1742139267948,0.00997127,83381.0,83380.0,0.001]
[1742139268357,0.00997127,83381.0,83378.0,0.251862]
[1742139268562,0.00997127,83381.0,83380.0,0.002]
[1742139269262,0.00987131,83381.0,83380.0,0.002]
[1742139269792,0.011992,83386.0,83380.0,0.002]
[1742139269793,0.239779,83410.0,83388.0,0.551834]
[1742139269997,0.012157,83414.0,83388.0,0.48533485]
[1742139270200,0.00092406,83389.0,83388.0,0.470794]
[1742139271005,0.00092406,83389.0,83388.0,0.475794]
[1742139271185,0.00092406,83389.0,83388.0,0.479794]
[1742139271587,0.00092406,83389.0,83388.0,0.474794]
[1742139272036,0.00092406,83389.0,83388.0,0.470794]
[1742139273089,0.00092406,83389.0,83388.0,0.476794]
[1742139273503,0.00092406,83389.0,83388.0,0.482794]
[1742139276088,0.00092406,83389.0,83388.0,0.470802]
[1742139276314,0.00092406,83389.0,83388.0,0.400994]
[1742139277088,0.00092406,83389.0,83388.0,0.394994]
[1742139277293,0.00092406,83389.0,83388.0,0.393994]
[1742139277498,0.00109296,83389.0,83388.0,0.393994]
[1742139277701,0.00109296,83389.0,83388.0,0.397994]
[1742139282333,0.01699375,83389.0,83388.0,0.248842]
[1742139282538,0.01699375,83389.0,83388.0,0.009]
[1742139282539,0.00109296,83389.0,83388.0,0.009]
[1742139282698,0.00963982,83389.0,83388.0,0.009]
[1742139282897,0.00109296,83389.0,83388.0,0.009]
[1742139283110,0.00109296,83389.0,83388.0,0.004]
[1742139283350,0.0257182,83389.0,83388.0,0.004]
[1742139283551,0.0001691,83408.0,83407.0,0.251777]
[1742139283751,0.0001691,83408.0,83407.0,0.239788]
[1742139283950,0.0001691,83408.0,83407.0,0.251777]
[1742139285710,0.0001691,83408.0,83407.0,0.255777]
[1742139286358,0.0001691,83408.0,83407.0,0.259777]
[1742139287274,0.0001691,83408.0,83407.0,0.247788]
[1742139287709,0.0001691,83408.0,83407.0,0.259777]
[1742139290524,1e-07,83408.0,83407.0,0.305877]
[1742139290726,1e-07,83408.0,83407.0,1.10308527]
[1742139290926,0.000169,83417.0,83413.0,0.251758]
[1742139290927,1e-07,83414.0,83413.0,0.251758]
[1742139291127,1e-07,83417.0,83416.0,0.34219085]
[1742139291339,5.4e-07,83417.0,83416.0,0.64219085]
[1742139292552,5.4e-07,83417.0,83416.0,0.64819085]
[1742139293349,5.4e-07,83417.0,83416.0,0.65419085]
[1742139293758,5.4e-07,83417.0,83416.0,0.64219085]
[1742139293966,5.4e-07,83417.0,83416.0,0.64819085]
[1742139294166,5.4e-07,83417.0,83416.0,0.65419085]
[1742139294369,5.4e-07,83417.0,83416.0,1.11205827]
[1742139294778,5.4e-07,83417.0,83416.0,1.25037827]
[1742139294941,0.0008,83429.0,83416.0,1.25037827]
[1742139294942,5.4e-07,83429.0,83428.0,0.627613]
[1742139295307,0.00012452,83429.0,83428.0,1.04892127]
[1742139295699,5.2e-07,83429.0,83428.0,1.04892127]
[1742139295931,5.2e-07,83429.0,83428.0,1.10002127]
[1742139296934,5.2e-07,83429.0,83428.0,1.10602127]
[1742139297992,5.2e-07,83429.0,83428.0,1.11202127]
[1742139298162,5.2e-07,83429.0,83428.0,1.10602127]
[1742139298370,5.2e-07,83441.0,83440.0,0.251677]
[1742139298596,5.2e-07,83441.0,83440.0,0.70441785]
[1742139298798,5.2e-07,83441.0,83440.0,1.23648527]
[1742139299929,5.2e-07,83441.0,83440.0,1.24248527]
[1742139300371,5.2e-07,83441.0,83440.0,0.78974442]
[1742139300580,5.2e-07,83441.0,83440.0,0.41276742]
[1742139300786,5.2e-07,83441.0,83440.0,0.55688742]
[1742139301004,5.2e-07,83441.0,83440.0,0.56287142]
[1742139301390,5.2e-07,83441.0,83440.0,0.55088742]
[1742139301593,0.00598224,83441.0,83440.0,0.78458042]
[1742139301831,0.01796624,83441.0,83440.0,0.41876742]
[1742139302226,0.01796624,83441.0,83440.0,0.41276742]
[1742139302456,0.00598224,83441.0,83440.0,0.41276742]
[1742139302659,0.01796624,83441.0,83440.0,0.41876742]
[1742139302866,0.01796624,83441.0,83440.0,0.012]
[1742139303063,0.01796624,83441.0,83440.0,0.006]
[1742139303419,0.03675262,83441.0,83440.0,0.012]
[1742139303625,0.03675262,83441.0,83440.0,0.006]
[1742139303800,0.03675262,83441.0,83440.0,0.011]
[1742139304188,0.02476862,83441.0,83440.0,0.017984]
[1742139304399,0.0187869,83441.0,83440.0,0.018984]
[1742139304610,0.0187869,83441.0,83440.0,0.012984]
[1742139304831,5.2e-07,83441.0,83440.0,0.012984]
[1742139305049,5.2e-07,83441.0,83440.0,0.014984]
[1742139305259,5.2e-07,83441.0,83440.0,0.013984]
[1742139305626,5.2e-07,83441.0,83440.0,0.011984]
[1742139305839,5.2e-07,83441.0,83440.0,0.017984]
[1742139306243,5.2e-07,83441.0,83440.0,0.011984]
[1742139306680,5.2e-07,83441.0,83440.0,0.016984]
[1742139307427,5.2e-07,83441.0,83440.0,0.01]
[1742139307866,5.2e-07,83441.0,83440.0,0.011984]
[1742139308067,5.2e-07,83441.0,83440.0,0.016984]
[1742139308239,5.2e-07,83441.0,83440.0,0.009]
[1742139308433,5.2e-07,83441.0,83440.0,0.005]
[1742139308708,0.011985,83433.0,83426.0,0.251717]
[1742139308881,0.011985,83432.0,83427.0,0.13844]
[1742139309058,0.251704,83431.0,83427.0,0.13844]
[1742139309261,0.011986,83428.0,83423.0,0.251726]
[1742139309681,0.011986,83427.0,83422.0,0.239743]
[1742139309889,0.011986,83427.0,83422.0,0.25173]
[1742139310083,0.011986,83427.0,83415.0,0.239762]
[1742139310084,0.011986,83424.0,83415.0,0.239762]
[1742139310421,0.011986,83424.0,83418.0,0.251741]
[1742139310553,0.011986,83424.0,83419.0,0.23987498]
[1742139310760,0.011986,83426.0,83421.0,0.239747]
[1742139310968,0.251715,83428.0,83426.0,0.004]
[1742139311373,0.251715,83428.0,83423.0,0.011987]
[1742139311574,0.011986,83427.0,83420.0,0.251734]
[1742139311997,0.011986,83427.0,83422.0,0.011987]
[1742139312195,0.011986,83426.0,83421.0,0.011987]
[1742139312474,0.011986,83426.0,83421.0,0.251732]
[1742139312618,0.251718,83427.0,83423.0,0.003]
[1742139312824,0.011986,83428.0,83423.0,0.242739]
[1742139313024,0.251716,83428.0,83423.0,0.003]
[1742139313322,0.011986,83427.0,83423.0,0.003]
[1742139313506,0.25172,83426.0,83423.0,0.003]
[1742139313707,0.011986,83426.0,83423.0,0.006]
[1742139314112,0.251725,83424.0,83423.0,0.003]
[1742139314521,0.251731,83422.0,83421.0,0.004]
[1742139315071,0.251737,83420.0,83419.0,0.00012398]
[1742139316421,0.239743,83423.0,83419.0,0.00012398]
[1742139316623,0.239746,83422.0,83419.0,0.00012398]
[1742139316753,0.011987,83420.0,83419.0,0.00012398]
[1742139317841,0.25173,83423.0,83419.0,0.00012398]
[1742139318040,0.239746,83422.0,83419.0,0.00312398]
[1742139318245,0.239746,83422.0,83419.0,0.00412398]
[1742139318648,0.239746,83422.0,83419.0,0.00312398]
[1742139318854,0.239746,83422.0,83419.0,0.00012398]
[1742139319010,0.251736,83421.0,83419.0,0.00212398]
[1742139319617,0.251726,83424.0,83419.0,0.00212398]
[1742139319824,0.23974,83424.0,83419.0,0.24187398]
[1742139320020,0.011986,83430.0,83424.0,0.011986]
[1742139320232,0.239732,83427.0,83421.0,0.011987]
[1742139320437,0.011986,83428.0,83422.0,0.239743]
[1742139320658,0.011985,83434.0,83426.0,0.011986]
[1742139320858,0.239718,83432.0,83428.0,0.239726]
[1742139321208,0.011986,83424.0,83419.0,0.00012398]
[1742139321445,0.011986,83430.0,83419.0,0.00012398]
[1742139321446,0.011986,83428.0,83422.0,0.239742]
[1742139321645,0.251719,83427.0,83422.0,0.239742]
[1742139321780,0.011987,83423.0,83419.0,0.00212398]
[1742139321981,0.239749,83421.0,83419.0,0.00012398]
[1742139322178,0.011987,83420.0,83419.0,0.00012398]
[1742139322599,0.25853955,83421.0,83419.0,0.00012398]
[1742139323151,0.25853955,83421.0,83419.0,0.00212398]
[1742139323483,0.25853955,83421.0,83419.0,0.00312398]
[1742139323881,0.25853955,83421.0,83419.0,0.00212398]
[1742139324111,0.01879055,83421.0,83419.0,0.24387498]
[1742139324416,0.01879055,83421.0,83420.0,0.011987]
[1742139325543,0.01879055,83421.0,83419.0,0.00246238]
[1742139325743,0.251737,83420.0,83419.0,0.00246238]
[1742139325948,0.23729209,83422.0,83419.0,0.00246238]
[1742139326153,0.23975,83420.0,83419.0,0.00246238]
[1742139326356,0.30000052,83441.0,83440.0,0.239693]
[1742139326618,4.2e-07,83444.0,83443.0,0.27120885]
[1742139326753,4.2e-07,83444.0,83443.0,0.56620885]
[1742139327128,4.2e-07,83444.0,83443.0,0.391748]
[1742139327259,4.2e-07,83444.0,83443.0,0.391788]
[1742139328086,4.2e-07,83444.0,83443.0,0.397788]
[1742139328310,6.94e-05,83465.0,83462.0,0.239629]
[1742139328713,6.94e-05,83465.0,83464.0,0.239624]
[1742139329615,0.00019336,83465.0,83464.0,0.239624]
[1742139329981,0.00019336,83465.0,83464.0,0.241624]
[1742139330183,0.00019336,83465.0,83464.0,0.33510311]
[1742139330381,0.00019336,83465.0,83464.0,0.333905]
[1742139330622,0.00019336,83465.0,83464.0,0.334905]
[1742139331429,0.00019336,83465.0,83464.0,0.331905]
[1742139331824,0.00019336,83465.0,83464.0,0.343905]
[1742139332628,0.00019336,83465.0,83464.0,0.341505]
[1742139332827,0.00019336,83465.0,83464.0,0.335505]
[1742139333407,0.00019336,83465.0,83464.0,0.79377242]
[1742139333649,0.00019336,83465.0,83464.0,0.78877242]
[1742139334095,3.6e-07,83469.0,83464.0,0.80931327]
[1742139334285,3.6e-07,83472.0,83471.0,0.01198]
[1742139334444,3.6e-07,83472.0,83471.0,0.01317773]
[1742139334642,2.6e-07,83473.0,83472.0,0.01198]
[1742139334848,2.6e-07,83473.0,83472.0,0.02652085]
[1742139336089,2.6e-07,83473.0,83472.0,0.16608085]
[1742139336275,2.6e-07,83473.0,83472.0,0.17208085]
[1742139337712,2.6e-07,83473.0,83472.0,0.15754]
[1742139338041,2.6e-07,83473.0,83472.0,0.16354]
[1742139338236,2.6e-07,83473.0,83472.0,0.16473777]
[1742139338540,2.6e-07,83473.0,83472.0,0.56550519]
[1742139338746,2.6e-07,83473.0,83472.0,0.57030742]
[1742139338940,2.6e-07,83473.0,83472.0,0.43074742]
[1742139339350,2.6e-07,83473.0,83472.0,0.41874742]
[1742139339555,2.6e-07,83473.0,83472.0,0.42474742]
[1742139339791,2.6e-07,83473.0,83472.0,0.41876742]
[1742139339943,2.6e-07,83473.0,83472.0,0.42474742]
[1742139340340,2.6e-07,83473.0,83472.0,0.43074742]
[1742139341020,2.6e-07,83473.0,83472.0,0.42474742]
[1742139341225,2.6e-07,83473.0,83472.0,0.43074742]
[1742139345401,2.6e-07,83473.0,83472.0,0.44528827]
[1742139346382,2.6e-07,83473.0,83472.0,0.43074742]
[1742139347526,2.6e-07,83473.0,83472.0,0.41876742]
[1742139347747,2.6e-07,83473.0,83472.0,0.43074742]
[1742139349748,2.6e-07,83473.0,83472.0,0.43108562]
[1742139355986,2.6e-07,83473.0,83472.0,0.57012562]
[1742139356353,2.6e-07,83473.0,83472.0,0.58466647]
[1742139356565,2.6e-07,83473.0,83472.0,0.66046647]
[1742139361240,2.6e-07,83473.0,83472.0,0.64592562]
[1742139361691,2.6e-07,83473.0,83472.0,0.41910562]
[1742139361878,2.6e-07,83473.0,83472.0,0.65870662]
[1742139362055,0.00386726,83473.0,83472.0,0.67068662]
[1742139362255,2.6e-07,83473.0,83472.0,0.67068662]
[1742139363190,2.6e-07,83473.0,83472.0,0.41910562]
[1742139363576,0.00386948,83473.0,83472.0,0.41910562]
[1742139363953,0.27422551,83473.0,83472.0,0.41910562]
[1742139364153,0.02264851,83473.0,83472.0,0.41910562]
[1742139364358,0.02264851,83473.0,83472.0,0.41310562]
[1742139364674,0.01877929,83473.0,83472.0,0.41110562]
[1742139364873,0.01877929,83473.0,83472.0,0.41410562]
[1742139365080,0.02265415,83473.0,83472.0,0.41410562]
[1742139366773,0.26225215,83473.0,83472.0,0.41410562]
[1742139366972,0.27423115,83473.0,83472.0,0.0073382]
[1742139367502,0.25545212,83473.0,83472.0,0.0073382]
[1742139367875,0.25545212,83473.0,83472.0,0.0003382]
[1742139368059,0.33125212,83473.0,83472.0,0.0033382]
[1742139368439,0.25545212,83473.0,83472.0,0.0033382]
[1742139369665,0.24347312,83473.0,83472.0,0.0023382]
[1742139369865,0.25545212,83473.0,83472.0,0.0033382]
[1742139370210,0.25545212,83473.0,83472.0,0.0013382]
[1742139370551,0.02265616,83473.0,83472.0,0.0013382]
[1742139370771,0.27423316,83473.0,83472.0,0.0003382]
[1742139370991,0.27423316,83473.0,83472.0,0.0013382]
[1742139371190,0.27423316,83473.0,83472.0,0.0033382]
[1742139371624,0.02265616,83473.0,83472.0,0.3302192]
[1742139371801,2.6e-07,83473.0,83472.0,0.79852747]
[1742139372848,1e-07,83486.0,83485.0,0.251541]
[1742139373052,1e-07,83486.0,83485.0,0.88698927]
[1742139374292,0.0001693,83501.0,83497.0,0.011976]
[1742139374431,0.0001693,83501.0,83500.0,0.26603685]
[1742139374636,0.00058259,83501.0,83500.0,0.40499685]
[1742139376071,0.00058259,83501.0,83500.0,0.42465135]
[1742139377089,0.00058259,83501.0,83500.0,0.43665135]
[1742139377288,0.00048272,83501.0,83500.0,0.43065135]
[1742139377494,7.2e-07,83501.0,83500.0,0.43065135]
[1742139377694,7.2e-07,83501.0,83500.0,0.96221877]
[1742139377901,7.2e-07,83501.0,83500.0,0.96801877]
[1742139379904,7.2e-07,83501.0,83500.0,0.96789877]
[1742139381154,7.2e-07,83501.0,83500.0,1.26789877]
[1742139381375,1e-06,83509.0,83508.0,0.551472]
[1742139381627,8.8e-07,83509.0,83508.0,0.97777955]
[1742139381835,8.8e-07,83509.0,83508.0,1.05717955]
[1742139383033,8.8e-07,83509.0,83508.0,1.06317955]
[1742139383441,8.8e-07,83509.0,83508.0,1.06917955]
[1742139384547,8.8e-07,83509.0,83508.0,2.56917955]
[1742139385789,0.00016988,83509.0,83508.0,1.06917955]
[1742139386189,8.8e-07,83509.0,83508.0,1.06917955]
[1742139388823,8.8e-07,83509.0,83508.0,0.8883187]
[1742139388970,8.8e-07,83509.0,83508.0,0.8089187]
[1742139389138,8.8e-07,83509.0,83508.0,0.82345955]
[1742139389335,8.8e-07,83509.0,83508.0,0.8089187]
[1742139389786,8.8e-07,83509.0,83508.0,0.81145955]
[1742139390099,8.8e-07,83509.0,83508.0,0.8089187]
[1742139390300,8.8e-07,83509.0,83508.0,0.8090387]
[1742139390632,8.8e-07,83509.0,83508.0,0.81157955]
[1742139390871,8.8e-07,83509.0,83508.0,0.82357955]
[1742139391594,8.8e-07,83509.0,83508.0,0.4127667]
[1742139391803,8.8e-07,83509.0,83508.0,0.5634607]
[1742139391978,8.8e-07,83509.0,83508.0,0.42730755]
[1742139391979,0.00367073,83509.0,83508.0,0.42730755]
[1742139392216,0.03074495,83509.0,83508.0,0.006]
[1742139392620,0.251493,83501.0,83500.0,0.000338]
[1742139393159,0.25517773,83501.0,83500.0,0.000338]
[1742139393362,0.63707773,83501.0,83500.0,0.000338]
[1742139393594,0.57744937,83501.0,83500.0,0.000338]
[1742139393837,0.26547437,83501.0,83500.0,0.000338]
[1742139394065,0.27744937,83501.0,83500.0,0.000338]
[1742139395268,0.25517773,83501.0,83500.0,0.000338]
[1742139395515,0.00368473,83501.0,83500.0,0.000338]
[1742139395726,0.00368473,83501.0,83500.0,0.012314]
[1742139395952,0.01877095,83509.0,83504.0,0.011975]
[1742139396124,0.01877095,83509.0,83505.0,0.239505]
[1742139396325,0.00359893,83508.0,83505.0,0.239505]
[1742139396727,0.00359893,83508.0,83502.0,0.239512]
[1742139396939,0.25507293,83508.0,83502.0,0.251487]
[1742139397593,0.251478,83507.0,83502.0,0.251487]
[1742139397781,0.251478,83507.0,83501.0,0.011975]
[1742139397988,0.24311056,83506.0,83501.0,0.011975]
[1742139398354,0.00360456,83506.0,83502.0,0.251487]
[1742139398736,0.02230026,83505.0,83500.0,0.012314]
[1742139399119,0.00361361,83504.0,83500.0,0.012314]
[1742139399856,0.01558861,83504.0,83500.0,0.000338]
[1742139400058,0.02230026,83503.0,83500.0,0.000338]
[1742139400265,0.011975,83501.0,83500.0,0.000338]
[1742139400475,0.01559399,83501.0,83500.0,0.000338]
[1742139400879,0.01559399,83501.0,83500.0,0.002338]
[1742139401300,0.02239303,83501.0,83500.0,0.001338]
[1742139401667,0.04469329,83501.0,83500.0,0.000338]
[1742139401801,0.05666829,83501.0,83500.0,0.000338]
[1742139402600,0.03789425,83501.0,83500.0,0.000338]
[1742139402803,0.47627637,83501.0,83500.0,0.000338]
[1742139403159,0.46699425,83501.0,83500.0,0.000338]
[1742139404175,0.32591925,83501.0,83500.0,0.000338]
[1742139404373,0.33789425,83501.0,83500.0,0.000338]
[1742139405636,0.3566697,83501.0,83500.0,0.000338]
[1742139406943,0.3606697,83501.0,83500.0,0.000338]
[1742139407837,0.011976,83496.0,83491.0,0.251521]
[1742139407993,0.011976,83495.0,83491.0,0.239544]
[1742139408212,0.01561314,83495.0,83491.0,0.239544]
[1742139408657,0.25515014,83495.0,83489.0,0.251528]
[1742139408796,0.011977,83491.0,83485.0,0.251539]
[1742139409002,0.00364921,83490.0,83486.0,0.251536]
[1742139409622,0.02242483,83490.0,83486.0,0.251536]
[1742139409824,0.00364921,83490.0,83486.0,0.251536]
[1742139410031,0.00364921,83490.0,83486.0,0.011978]
[1742139410453,0.239552,83489.0,83485.0,0.251539]
[1742139410657,0.2432084,83488.0,83482.0,0.251548]
[1742139410889,0.011977,83487.0,83482.0,0.251548]
[1742139411180,0.29759744,83488.0,83483.0,0.239568]
[1742139411380,0.0036514,83486.0,83483.0,0.239568]
[1742139411588,0.29759744,83488.0,83483.0,0.239568]
[1742139411784,0.0036514,83485.0,83483.0,0.239568]
[1742139411996,0.23958,83480.0,83478.0,0.4067667]
[1742139412197,0.011978,83480.0,83478.0,0.4067667]
[1742139412387,0.011979,83479.0,83478.0,0.4067667]
[1742139412625,0.011979,83474.0,83472.0,0.0003382]
[1742139413113,0.0156592,83473.0,83472.0,0.0003382]
[1742139413344,0.0156592,83473.0,83472.0,0.00075149]
[1742139413535,0.0036802,83473.0,83472.0,0.24035249]
[1742139414023,0.05806004,83473.0,83472.0,0.24335249]
[1742139414227,0.06174307,83473.0,83472.0,0.25533249]
[1742139414594,0.05806004,83473.0,83472.0,0.25533249]
[1742139415140,0.05806004,83473.0,83472.0,0.00675149]
[1742139415141,0.30132544,83473.0,83472.0,0.00675149]
[1742139415339,0.31330444,83473.0,83472.0,0.00675149]
[1742139415858,0.27754466,83473.0,83472.0,0.00675149]
[1742139416043,0.27754466,83473.0,83472.0,0.00375149]
[1742139416878,0.27754466,83473.0,83472.0,0.00175149]
[1742139417089,0.33208391,83473.0,83472.0,0.00275149]
[1742139418871,0.29632413,83473.0,83472.0,0.00275149]
[1742139419705,0.27754466,83473.0,83472.0,0.00275149]
[1742139421289,0.27813037,83473.0,83472.0,0.00275149]
[1742139422116,0.77520115,83473.0,83472.0,0.00275149]
[1742139422318,0.69350672,83473.0,83472.0,0.00275149]
[1742139422952,0.69350672,83473.0,83472.0,0.00175149]
[1742139423258,0.69350672,83473.0,83472.0,0.00075149]
[1742139423812,0.65763037,83473.0,83472.0,0.00075149]
[1742139424011,0.67841236,83473.0,83472.0,0.00075149]
[1742139426489,0.59891236,83473.0,83472.0,0.00075149]
[1742139427011,0.02855337,83473.0,83472.0,0.01273149]
[1742139427212,0.02855337,83473.0,83472.0,0.00075149]
[1742139427424,0.27587726,83473.0,83472.0,0.00075149]
[1742139427621,0.27955478,83473.0,83472.0,0.00075149]
[1742139428030,0.35172344,83473.0,83472.0,0.00075149]
[1742139428242,0.27955478,83473.0,83472.0,0.00075149]
[1742139429594,0.27755478,83473.0,83472.0,0.00075149]
[1742139429793,0.27955478,83473.0,83472.0,0.00075149]
[1742139430441,0.29833545,83473.0,83472.0,0.00075149]
[1742139430791,0.29891436,83473.0,83472.0,0.00075149]
[1742139432014,0.64064697,83473.0,83472.0,0.00075149]
[1742139432214,0.58013369,83473.0,83472.0,0.00075149]
[1742139433749,0.62573369,83473.0,83472.0,0.00075149]
[1742139434116,0.60343343,83473.0,83472.0,0.00075149]
[1742139434558,0.55783343,83473.0,83472.0,0.00075149]
[1742139435031,0.57661503,83473.0,83472.0,0.00075149]
[1742139435419,0.57861503,83473.0,83472.0,0.00075149]
[1742139435577,0.57661503,83473.0,83472.0,0.00075149]
[1742139436109,0.57761503,83473.0,83472.0,0.00075149]
[1742139436310,0.57661503,83473.0,83472.0,0.00075149]
[1742139436673,0.57861503,83473.0,83472.0,0.00075149]
[1742139439664,0.55983343,83473.0,83472.0,0.00075149]
[1742139440489,0.67940846,83473.0,83472.0,0.00075149]
[1742139440985,0.55983343,83473.0,83472.0,0.00075149]
[1742139442473,0.55983343,83473.0,83438.0,0.239697]
[1742139442474,0.011985,83434.0,83433.0,0.0763]
[1742139442649,0.011984,83442.0,83434.0,0.011985]
[1742139442859,0.251676,83441.0,83435.0,0.011985]
[1742139443063,0.24345566,83440.0,83435.0,0.251691]
[1742139443426,0.251681,83439.0,83433.0,0.31613488]
[1742139443612,0.251681,83439.0,83433.0,0.07642388]
[1742139443820,0.00377501,83438.0,83435.0,0.239704]
[1742139444027,0.00377501,83438.0,83436.0,0.239702]
[1742139444319,0.00375805,83437.0,83436.0,0.239702]
[1742139444476,0.2142662,83444.0,83437.0,0.239699]
[1742139444687,0.2142662,83444.0,83439.0,0.239694]
[1742139444688,0.00398714,83443.0,83439.0,0.239694]
[1742139445669,0.02068009,83443.0,83439.0,0.239694]
[1742139445943,0.02068009,83443.0,83439.0,0.242694]
[1742139445944,0.00398714,83443.0,83439.0,0.242694]
[1742139446142,0.000485,83442.0,83439.0,0.242694]
[1742139446523,0.251663,83445.0,83439.0,0.242694]
[1742139446524,0.011984,83444.0,83439.0,0.003]
[1742139446720,0.00400149,83443.0,83439.0,0.003]
[1742139446956,0.011984,83440.0,83439.0,0.003]
[1742139447128,0.011984,83440.0,83439.0,0.006]
[1742139447328,0.01650486,83440.0,83439.0,0.006]
[1742139447537,0.01650486,83440.0,83439.0,0.003]
[1742139447724,0.01650486,83440.0,83439.0,0.005]
[1742139448110,0.01650486,83440.0,83439.0,0.0033384]
[1742139448454,0.01650486,83440.0,83439.0,0.0023384]
[1742139449205,0.251703,83432.0,83426.0,0.22019328]
[1742139449380,0.23938129,83436.0,83429.0,0.011986]
[1742139449381,0.251695,83435.0,83429.0,0.011986]
[1742139449612,0.0044939,83431.0,83430.0,0.239721]
[1742139449823,0.47908729,83436.0,83431.0,0.239716]
[1742139450037,0.23938129,83436.0,83433.0,0.239713]
[1742139450177,0.011985,83437.0,83433.0,0.239713]
[1742139450382,0.01878737,83435.0,83431.0,0.251701]
[1742139450590,0.01878737,83435.0,83432.0,0.239714]
[1742139451440,0.01878737,83435.0,83434.0,0.23971]
[1742139451616,0.3237861,83447.0,83443.0,0.328768]
[1742139451949,0.3,83447.0,83443.0,0.0771]
[1742139452131,0.00447063,83444.0,83443.0,0.0771]
[1742139452323,0.3,83445.0,83443.0,0.0771]
[1742139452483,0.00447302,83444.0,83443.0,0.0771]
[1742139453809,0.001,83445.0,83443.0,0.0771]
[1742139454011,0.00444772,83444.0,83443.0,0.0771]
[1742139454211,0.00544772,83444.0,83443.0,0.0771]
[1742139454414,0.001,83444.0,83443.0,0.0771]
[1742139454613,0.00544772,83444.0,83443.0,0.0771]
[1742139454820,0.001,83444.0,83438.0,0.011984]
[1742139455024,0.00544772,83444.0,83441.0,0.239688]
[1742139455843,0.0242349,83444.0,83441.0,0.239688]
[1742139456077,0.0232349,83444.0,83441.0,0.239688]
[1742139456457,0.0242349,83444.0,83442.0,0.239686]
[1742139456974,0.0242349,83444.0,83442.0,0.232486]